[Event "*** MasterClass Titled Tuesday Blitz"]
[Site "Chess.com"]
[Date "2017.10.03"]
[Round "4"]
[White "Shtembuliak"]
[Black "nubair1198"]
[Result "1-0"]
[WhiteElo "2622"]
[BlackElo "2446"]
[TimeControl "180+2"]
[EndTime "13:52:47 PDT"]
[Termination "Shtembuliak won by resignation"]

1. Nf3 {[%clk 0:03:01.9]} 1... Nf6 {[%clk 0:03:01.9]} 2. g3 {[%clk 0:03:02.6]}
2... g6 {[%clk 0:03:02.9]} 3. b3 {[%clk 0:03:03.8]} 3... Bg7 {[%clk 0:02:55.7]}
4. Bb2 {[%clk 0:03:05.2]} 4... O-O {[%clk 0:02:57]} 5. Bg2 {[%clk 0:03:06.7]}
5... d6 {[%clk 0:02:58.5]} 6. d4 {[%clk 0:03:07]} 6... a5 {[%clk 0:02:55.3]} 7.
a4 {[%clk 0:03:02.6]} 7... Nc6 {[%clk 0:02:53.7]} 8. O-O {[%clk 0:03:02.8]} 8...
e5 {[%clk 0:02:54.9]} 9. dxe5 {[%clk 0:03:01.9]} 9... Ng4 {[%clk 0:02:55.9]} 10.
Nc3 {[%clk 0:03:02.3]} 10... Ngxe5 {[%clk 0:02:55.5]} 11. Nxe5 {[%clk
0:03:03.2]} 11... Bxe5 {[%clk 0:02:56.6]} 12. Qd2 {[%clk 0:03:02]} 12... Re8
{[%clk 0:02:53.6]} 13. Rad1 {[%clk 0:03:02.6]} 13... Bg4 {[%clk 0:02:53.9]} 14.
h3 {[%clk 0:03:01.3]} 14... Be6 {[%clk 0:02:52]} 15. Qc1 {[%clk 0:02:52.7]}
15... Qf6 {[%clk 0:02:10.7]} 16. Ne4 {[%clk 0:02:49.3]} 16... Qg7 {[%clk
0:02:12]} 17. Bxe5 {[%clk 0:02:45.9]} 17... Qxe5 {[%clk 0:02:13.9]} 18. e3
{[%clk 0:02:23.3]} 18... Bf5 {[%clk 0:02:06.2]} 19. Rd5 {[%clk 0:02:09.3]} 19...
Qe7 {[%clk 0:02:01.7]} 20. Nc3 {[%clk 0:02:04.5]} 20... Qf6 {[%clk 0:01:53.9]}
21. Qd2 {[%clk 0:02:00.8]} 21... Nb4 {[%clk 0:01:52.9]} 22. Rb5 {[%clk
0:01:57.4]} 22... Bxc2 {[%clk 0:01:51.7]} 23. Rxb7 {[%clk 0:01:22.1]} 23... Bxb3
{[%clk 0:01:49.1]} 24. Rxc7 {[%clk 0:01:19.9]} 24... d5 {[%clk 0:01:46.3]} 25.
Rb1 {[%clk 0:00:49.1]} 25... Qb6 {[%clk 0:01:16.7]} 26. Rd7 {[%clk 0:00:28]}
26... Qe6 {[%clk 0:01:17.7]} 27. Rc7 {[%clk 0:00:26.1]} 27... Qb6 {[%clk
0:01:18.6]} 28. Rd7 {[%clk 0:00:27.3]} 28... Qe6 {[%clk 0:01:19.4]} 29. Rc7
{[%clk 0:00:22.3]} 29... Qb6 {[%clk 0:01:20.4]} 30. Rxf7 {[%clk 0:00:23.8]}
30... Kxf7 {[%clk 0:01:18.3]} 31. Rxb3 {[%clk 0:00:25.4]} 31... d4 {[%clk
0:01:11.2]} 32. Bxa8 {[%clk 0:00:13.8]} 32... dxc3 {[%clk 0:01:12.1]} 33. Bd5+
{[%clk 0:00:15.4]} 33... Kg7 {[%clk 0:00:56.4]} 34. Qxc3+ {[%clk 0:00:16]} 34...
Kh6 {[%clk 0:00:57]} 35. Qc4 {[%clk 0:00:10.5]} 35... Qf6 {[%clk 0:00:58.5]} 36.
Rxb4 {[%clk 0:00:06.4]} 36... axb4 {[%clk 0:00:58.5]} 37. Qxb4 {[%clk
0:00:07.9]} 37... Rc8 {[%clk 0:00:58.4]} 38. Qd2 {[%clk 0:00:05]} 38... Qa1+
{[%clk 0:00:54.9]} 39. Kg2 {[%clk 0:00:06.4]} 39... Qxa4 {[%clk 0:00:55.4]} 40.
e4+ {[%clk 0:00:07.9]} 40... Kg7 {[%clk 0:00:56.5]} 41. Qb2+ {[%clk 0:00:09.3]}
41... Kh6 {[%clk 0:00:56]} 42. Qf6 {[%clk 0:00:09.9]} 42... Qe8 {[%clk
0:00:45.7]} 43. h4 {[%clk 0:00:07.6]} 43... Qd8 {[%clk 0:00:46.4]} 44. Qf4+
{[%clk 0:00:08.2]} 44... Kg7 {[%clk 0:00:47.3]} 45. Qf7+ {[%clk 0:00:09.7]}
45... Kh8 {[%clk 0:00:46.7]} 46. h5 {[%clk 0:00:07.5]} 46... gxh5 {[%clk
0:00:47.6]} 47. Qxh5 {[%clk 0:00:07.9]} 47... Qf6 {[%clk 0:00:48.7]} 48. Qe2
{[%clk 0:00:06.7]} 48... Rb8 {[%clk 0:00:48]} 49. e5 {[%clk 0:00:06.7]} 49...
Qf5 {[%clk 0:00:48.2]} 50. Bc4 {[%clk 0:00:05.6]} 50... Kg7 {[%clk 0:00:40.4]}
51. e6 {[%clk 0:00:05.9]} 51... Kf6 {[%clk 0:00:41.8]} 52. Qe3 {[%clk
0:00:04.3]} 52... Rd8 {[%clk 0:00:39.3]} 53. Qc3+ {[%clk 0:00:03.9]} 53... Qe5
{[%clk 0:00:39.7]} 54. Qf3+ {[%clk 0:00:03.6]} 54... Qf5 {[%clk 0:00:40.8]} 55.
Qc3+ {[%clk 0:00:04]} 55... Qe5 {[%clk 0:00:42.1]} 56. Qf3+ {[%clk 0:00:05]}
56... Qf5 {[%clk 0:00:43]} 57. Qe2 {[%clk 0:00:06.7]} 57... Qe5 {[%clk
0:00:43.3]} 58. Qg4 {[%clk 0:00:06.5]} 58... Rd4 {[%clk 0:00:39.9]} 59. Qf3+
{[%clk 0:00:06.8]} 59... Qf5 {[%clk 0:00:41.3]} 60. Qxf5+ {[%clk 0:00:05.8]}
60... Kxf5 {[%clk 0:00:43.2]} 61. e7 {[%clk 0:00:07.2]} 61... Re4 {[%clk
0:00:43.9]} 62. Bd3 {[%clk 0:00:08.5]} 62... Kf6 {[%clk 0:00:43.6]} 63. Bxe4
{[%clk 0:00:10.1]} 63... Kxe7 {[%clk 0:00:45.5]} 64. Bxh7 {[%clk 0:00:11.2]}
64... Kf6 {[%clk 0:00:47.4]} 65. Bb1 {[%clk 0:00:11.6]} 65... Kg7 {[%clk
0:00:49.3]} 66. f4 {[%clk 0:00:13]} 66... Kf6 {[%clk 0:00:50.8]} 67. Kf3 {[%clk
0:00:14.9]} 67... Kg7 {[%clk 0:00:52.7]} 68. Ba2 {[%clk 0:00:16.5]} 68... Kh6
{[%clk 0:00:54.6]} 69. g4 {[%clk 0:00:17.8]} 69... Kg7 {[%clk 0:00:56.5]} 70. g5
{[%clk 0:00:19.1]} 70... Kh8 {[%clk 0:00:57.9]} 71. f5 {[%clk 0:00:19.6]} 71...
Kg7 {[%clk 0:00:59.8]} 72. Kg4 {[%clk 0:00:21]} 72... Kh7 {[%clk 0:01:01.7]} 73.
f6 {[%clk 0:00:21.8]} 73... Kh8 {[%clk 0:01:03.6]} 74. Kf5 {[%clk 0:00:20.2]}
74... Kh7 {[%clk 0:01:05.5]} 75. Ke6 {[%clk 0:00:21.3]} 75... Kh8 {[%clk
0:01:06.4]} 76. Kf7 {[%clk 0:00:19.3]} 76... Kh7 {[%clk 0:01:07.5]} 77. g6+
{[%clk 0:00:20.7]} 77... Kh6 {[%clk 0:01:09.4]} 78. g7 {[%clk 0:00:21.9]} 78...
Kh5 {[%clk 0:01:11.2]} 79. g8=Q {[%clk 0:00:22.5]} 79... Kh4 {[%clk 0:01:13.1]}
80. Qg2 {[%clk 0:00:19.6]} 80... Kh5 {[%clk 0:01:15]} 1-0

[Event "*** MasterClass Titled Tuesday Blitz"]
[Site "Chess.com"]
[Date "2017.10.03"]
[Round "4"]
[White "maciek_92"]
[Black "ka1ser64"]
[Result "1-0"]
[WhiteElo "2524"]
[BlackElo "2318"]
[TimeControl "180+2"]
[EndTime "13:52:51 PDT"]
[Termination "maciek_92 won by resignation"]

1. e4 {[%clk 0:03:01.9]} 1... e6 {[%clk 0:03:01.1]} 2. d4 {[%clk 0:03:02.4]}
2... d5 {[%clk 0:03:02.5]} 3. Nd2 {[%clk 0:03:03.9]} 3... Nf6 {[%clk 0:03:02.1]}
4. e5 {[%clk 0:03:04.4]} 4... Nfd7 {[%clk 0:03:03.1]} 5. Bd3 {[%clk 0:03:05.9]}
5... c5 {[%clk 0:03:04.7]} 6. c3 {[%clk 0:03:06.9]} 6... Nc6 {[%clk 0:03:06.3]}
7. Ne2 {[%clk 0:03:07.5]} 7... cxd4 {[%clk 0:03:06.7]} 8. cxd4 {[%clk
0:03:08.8]} 8... f6 {[%clk 0:03:08.2]} 9. exf6 {[%clk 0:03:09.4]} 9... Nxf6
{[%clk 0:03:09.4]} 10. Nf3 {[%clk 0:03:10.3]} 10... Bd6 {[%clk 0:03:11]} 11. O-O
{[%clk 0:03:11.7]} 11... O-O {[%clk 0:03:12.2]} 12. Bg5 {[%clk 0:03:11.7]} 12...
Bd7 {[%clk 0:03:13.5]} 13. Rc1 {[%clk 0:03:11.3]} 13... Be8 {[%clk 0:03:14.4]}
14. Ng3 {[%clk 0:03:03.6]} 14... h6 {[%clk 0:03:12.2]} 15. Be3 {[%clk
0:02:52.2]} 15... Ng4 {[%clk 0:02:48.3]} 16. Bd2 {[%clk 0:02:50.7]} 16... Qb6
{[%clk 0:02:32]} 17. Qe2 {[%clk 0:02:39.9]} 17... Bf7 {[%clk 0:02:18.2]} 18. Bc3
{[%clk 0:02:28.6]} 18... Rae8 {[%clk 0:02:13.3]} 19. Rce1 {[%clk 0:02:23.5]}
19... e5 {[%clk 0:01:47.8]} 20. dxe5 {[%clk 0:02:17.5]} 20... Ngxe5 {[%clk
0:01:48.1]} 21. Nxe5 {[%clk 0:02:18]} 21... Bxe5 {[%clk 0:01:47.4]} 22. Qg4
{[%clk 0:02:07.1]} 22... Bxc3 {[%clk 0:01:28.1]} 23. bxc3 {[%clk 0:02:09]} 23...
Ne5 {[%clk 0:01:28.6]} 24. Qd1 {[%clk 0:01:57.2]} 24... Nxd3 {[%clk 0:01:26.7]}
25. Qxd3 {[%clk 0:01:59.1]} 25... Qf6 {[%clk 0:01:04.9]} 26. Rxe8 {[%clk
0:01:49.2]} 26... Rxe8 {[%clk 0:01:05.3]} 27. Ne2 {[%clk 0:01:50.7]} 27... Qg6
{[%clk 0:00:53.8]} 28. Qxg6 {[%clk 0:01:46.1]} 28... Bxg6 {[%clk 0:00:55]} 29.
Nd4 {[%clk 0:01:45.6]} 29... Bd3 {[%clk 0:00:53.2]} 30. Rd1 {[%clk 0:01:43.6]}
30... Bc4 {[%clk 0:00:54.3]} 31. h4 {[%clk 0:01:43.1]} 31... Kf7 {[%clk
0:00:52.2]} 32. a4 {[%clk 0:01:42.5]} 32... Kf6 {[%clk 0:00:47.5]} 33. a5 {[%clk
0:01:40]} 33... b5 {[%clk 0:00:44]} 34. axb6 {[%clk 0:01:39.8]} 34... axb6
{[%clk 0:00:44.9]} 35. Rb1 {[%clk 0:01:41.4]} 35... Rb8 {[%clk 0:00:44.9]} 36.
Re1 {[%clk 0:01:37.2]} 36... b5 {[%clk 0:00:44.4]} 37. Re6+ {[%clk 0:01:34.8]}
37... Kf7 {[%clk 0:00:45.5]} 38. Rc6 {[%clk 0:01:35.1]} 38... b4 {[%clk
0:00:44.3]} 39. cxb4 {[%clk 0:01:35.6]} 39... Rxb4 {[%clk 0:00:44.8]} 40. Rc7+
{[%clk 0:01:36.1]} 40... Kf6 {[%clk 0:00:44.5]} 41. Rc6+ {[%clk 0:01:36.6]}
41... Ke5 {[%clk 0:00:41.1]} 42. Nf3+ {[%clk 0:01:34.5]} 42... Kf5 {[%clk
0:00:38]} 43. Rc7 {[%clk 0:01:29.8]} 43... Rb1+ {[%clk 0:00:32.9]} 44. Kh2
{[%clk 0:01:30.5]} 44... g5 {[%clk 0:00:33.3]} 45. hxg5 {[%clk 0:01:29.1]} 45...
hxg5 {[%clk 0:00:34.6]} 46. Rf7+ {[%clk 0:01:30.3]} 46... Kg6 {[%clk 0:00:25.3]}
47. Ne5+ {[%clk 0:01:30.9]} 47... Kh6 {[%clk 0:00:26.5]} 48. Rc7 {[%clk
0:01:26.4]} 48... Rc1 {[%clk 0:00:24.7]} 49. g4 {[%clk 0:01:20]} 49... Rc2
{[%clk 0:00:24.1]} 50. Kg3 {[%clk 0:01:21.1]} 50... Bd3 {[%clk 0:00:24.5]} 51.
Rd7 {[%clk 0:01:08.3]} 51... Rc3 {[%clk 0:00:21.7]} 52. f3 {[%clk 0:01:03.5]}
52... Bc4 {[%clk 0:00:22]} 53. Rc7 {[%clk 0:01:04]} 53... Rc2 {[%clk 0:00:21.5]}
54. Rc6+ {[%clk 0:01:00.1]} 54... Kh7 {[%clk 0:00:21.7]} 55. Nf7 {[%clk
0:00:58.8]} 55... d4 {[%clk 0:00:18.9]} 56. Nxg5+ {[%clk 0:01:00.3]} 56... Kg7
{[%clk 0:00:19.2]} 57. Rd6 {[%clk 0:01:01.7]} 57... d3 {[%clk 0:00:19.3]} 58.
Ne4 {[%clk 0:01:00.7]} 58... Re2 {[%clk 0:00:17.5]} 59. g5 {[%clk 0:00:59.4]}
59... Kf7 {[%clk 0:00:18.2]} 60. Kf4 {[%clk 0:00:57.3]} 60... Ke7 {[%clk
0:00:18]} 61. Rd4 {[%clk 0:00:58.8]} 61... Bb5 {[%clk 0:00:13.8]} 62. Nc3 {[%clk
0:00:59.3]} 62... Rb2 {[%clk 0:00:04.2]} 63. Nxb5 {[%clk 0:00:59.8]} 63... Rxb5
{[%clk 0:00:06.1]} 64. Rxd3 {[%clk 0:00:59.3]} 64... Ke6 {[%clk 0:00:07.6]} 65.
Re3+ {[%clk 0:00:59.7]} 65... Kf7 {[%clk 0:00:09.1]} 66. Kg4 {[%clk 0:01:00.7]}
66... Rb1 {[%clk 0:00:08.9]} 67. Ra3 {[%clk 0:00:58.7]} 67... Rg1+ {[%clk
0:00:09.3]} 68. Kf5 {[%clk 0:00:59.1]} 68... Rb1 {[%clk 0:00:07]} 69. Ra7+
{[%clk 0:00:59.8]} 69... Kf8 {[%clk 0:00:08.6]} 70. f4 {[%clk 0:00:59.9]} 70...
Rb5+ {[%clk 0:00:09]} 71. Kg4 {[%clk 0:01:00.2]} 71... Rb1 {[%clk 0:00:09.7]}
72. g6 {[%clk 0:01:01.4]} 72... Kg8 {[%clk 0:00:10]} 73. Kg5 {[%clk 0:01:01.8]}
73... Rb4 {[%clk 0:00:10.4]} 74. f5 {[%clk 0:01:02.6]} 74... Rb6 {[%clk
0:00:11.7]} 75. f6 {[%clk 0:01:03]} 75... Rb5+ {[%clk 0:00:13]} 76. Kh6 {[%clk
0:01:04.2]} 1-0

[Event "*** MasterClass Titled Tuesday Blitz"]
[Site "Chess.com"]
[Date "2017.10.03"]
[Round "4"]
[White "saraswathii"]
[Black "PulpanJ"]
[Result "1/2-1/2"]
[WhiteElo "2307"]
[BlackElo "2341"]
[TimeControl "180+2"]
[EndTime "13:52:57 PDT"]
[Termination "Game drawn by stalemate"]

1. d4 {[%clk 0:03:01.9]} 1... Nf6 {[%clk 0:02:59.8]} 2. Bf4 {[%clk 0:03:01.9]}
2... b6 {[%clk 0:02:49.1]} 3. e3 {[%clk 0:03:02.6]} 3... Bb7 {[%clk 0:02:50.3]}
4. Nf3 {[%clk 0:03:03.4]} 4... g6 {[%clk 0:02:51.7]} 5. c4 {[%clk 0:03:02.2]}
5... Bg7 {[%clk 0:02:52.7]} 6. Nc3 {[%clk 0:03:03.1]} 6... O-O {[%clk
0:02:52.5]} 7. Be2 {[%clk 0:03:01.4]} 7... Ne4 {[%clk 0:02:35]} 8. Nxe4 {[%clk
0:03:00.8]} 8... Bxe4 {[%clk 0:02:35.2]} 9. Bd3 {[%clk 0:03:01.7]} 9... Bxd3
{[%clk 0:02:34.8]} 10. Qxd3 {[%clk 0:03:02.4]} 10... d6 {[%clk 0:02:36.7]} 11.
O-O {[%clk 0:02:58.8]} 11... Nd7 {[%clk 0:02:37.6]} 12. Rad1 {[%clk 0:02:57.7]}
12... Qe8 {[%clk 0:02:30.6]} 13. Rfe1 {[%clk 0:02:48]} 13... e5 {[%clk
0:02:18.7]} 14. dxe5 {[%clk 0:02:46.2]} 14... Nxe5 {[%clk 0:02:18.8]} 15. Bxe5
{[%clk 0:02:43.7]} 15... Bxe5 {[%clk 0:02:17.6]} 16. b3 {[%clk 0:02:35.5]} 16...
Bg7 {[%clk 0:02:18.2]} 17. e4 {[%clk 0:02:31.5]} 17... a5 {[%clk 0:02:15.6]} 18.
Qd5 {[%clk 0:02:27.7]} 18... a4 {[%clk 0:02:14.4]} 19. e5 {[%clk 0:02:19.8]}
19... dxe5 {[%clk 0:01:59.3]} 20. Nxe5 {[%clk 0:02:19.6]} 20... Ra5 {[%clk
0:02:00.2]} 21. Nd3 {[%clk 0:01:54.2]} 21... Rxd5 {[%clk 0:01:32.6]} 22. Rxe8
{[%clk 0:01:53.5]} 22... Rxe8 {[%clk 0:01:34.5]} 23. cxd5 {[%clk 0:01:53.6]}
23... a3 {[%clk 0:01:23.1]} 24. Kf1 {[%clk 0:01:47.7]} 24... Bf8 {[%clk
0:01:16.6]} 25. Rc1 {[%clk 0:01:42.6]} 25... Bd6 {[%clk 0:01:14.6]} 26. h3
{[%clk 0:01:24.3]} 26... Kg7 {[%clk 0:01:07.4]} 27. Rc3 {[%clk 0:01:25]} 27...
Kf6 {[%clk 0:00:42.8]} 28. Rc4 {[%clk 0:01:23.9]} 28... Ra8 {[%clk 0:00:44.4]}
29. Ke2 {[%clk 0:01:19.5]} 29... Ra5 {[%clk 0:00:45.4]} 30. b4 {[%clk
0:01:09.9]} 30... Rxd5 {[%clk 0:00:44.8]} 31. Rc3 {[%clk 0:01:09.6]} 31... Kf5
{[%clk 0:00:20.5]} 32. f3 {[%clk 0:00:52.5]} 32... Rd4 {[%clk 0:00:15.8]} 33.
Ke3 {[%clk 0:00:36.4]} 33... Rh4 {[%clk 0:00:16.4]} 34. Rxa3 {[%clk 0:00:21.7]}
34... Ke6 {[%clk 0:00:17.7]} 35. Ra7 {[%clk 0:00:19.8]} 35... Rc4 {[%clk
0:00:18.1]} 36. a3 {[%clk 0:00:19]} 36... f5 {[%clk 0:00:18.8]} 37. Ra8 {[%clk
0:00:19.9]} 37... Rc2 {[%clk 0:00:19.7]} 38. g4 {[%clk 0:00:19.6]} 38... Rc3
{[%clk 0:00:20.5]} 39. Kd2 {[%clk 0:00:20.1]} 39... Rc4 {[%clk 0:00:19.4]} 40.
Rh8 {[%clk 0:00:19.4]} 40... fxg4 {[%clk 0:00:19.3]} 41. hxg4 {[%clk 0:00:19.9]}
41... h5 {[%clk 0:00:19.9]} 42. gxh5 {[%clk 0:00:21]} 42... gxh5 {[%clk
0:00:21.8]} 43. Rxh5 {[%clk 0:00:21.8]} 43... Kf6 {[%clk 0:00:23.5]} 44. Rh8
{[%clk 0:00:21]} 44... Kg7 {[%clk 0:00:24.2]} 45. Rd8 {[%clk 0:00:21.5]} 45...
Rh4 {[%clk 0:00:23.1]} 46. Nf2 {[%clk 0:00:20.4]} 46... Rh2 {[%clk 0:00:23.5]}
47. Ke1 {[%clk 0:00:20]} 47... Bg3 {[%clk 0:00:23.8]} 48. Rd2 {[%clk 0:00:20.7]}
48... Kf6 {[%clk 0:00:24.1]} 49. Kf1 {[%clk 0:00:21.3]} 49... Bxf2 {[%clk
0:00:21.7]} 50. Rxf2 {[%clk 0:00:23.2]} 50... Rh1+ {[%clk 0:00:23.5]} 51. Kg2
{[%clk 0:00:23.4]} 51... Ra1 {[%clk 0:00:24.6]} 52. Rc2 {[%clk 0:00:22.5]} 52...
c5 {[%clk 0:00:25.3]} 53. Rc3 {[%clk 0:00:19.5]} 53... Ke6 {[%clk 0:00:19.2]}
54. bxc5 {[%clk 0:00:20.2]} 54... bxc5 {[%clk 0:00:21.1]} 55. Rxc5 {[%clk
0:00:20.8]} 55... Rxa3 {[%clk 0:00:21.8]} 56. Kg3 {[%clk 0:00:22.1]} 56... Ra4
{[%clk 0:00:20.5]} 57. Rb5 {[%clk 0:00:20.6]} 57... Kf6 {[%clk 0:00:21.4]} 58.
Rh5 {[%clk 0:00:18.1]} 58... Rb4 {[%clk 0:00:21.8]} 59. Rh4 {[%clk 0:00:17.8]}
59... Rxh4 {[%clk 0:00:22.1]} 60. Kxh4 {[%clk 0:00:18.6]} 60... Kf5 {[%clk
0:00:24]} 61. Kg3 {[%clk 0:00:19.7]} 61... Kg5 {[%clk 0:00:24.8]} 62. f4+ {[%clk
0:00:21]} 62... Kf5 {[%clk 0:00:26.7]} 63. Kf3 {[%clk 0:00:22.5]} 63... Kg6
{[%clk 0:00:28.3]} 64. Ke4 {[%clk 0:00:23]} 64... Kf6 {[%clk 0:00:29.5]} 65. f5
{[%clk 0:00:24.2]} 65... Ke7 {[%clk 0:00:29.4]} 66. Kf3 {[%clk 0:00:23.2]} 66...
Kf6 {[%clk 0:00:29.8]} 67. Kg4 {[%clk 0:00:24.2]} 67... Ke7 {[%clk 0:00:31.1]}
68. Kg5 {[%clk 0:00:25.2]} 68... Kf7 {[%clk 0:00:32.5]} 69. f6 {[%clk
0:00:26.5]} 69... Kf8 {[%clk 0:00:34.1]} 70. Kf4 {[%clk 0:00:22.6]} 70... Kf7
{[%clk 0:00:36]} 71. Ke5 {[%clk 0:00:23.7]} 71... Kf8 {[%clk 0:00:37.9]} 72. Ke6
{[%clk 0:00:25]} 72... Ke8 {[%clk 0:00:39.1]} 73. f7+ {[%clk 0:00:26.3]} 73...
Kf8 {[%clk 0:00:40.5]} 74. Kf6 {[%clk 0:00:27.6]} 1/2-1/2

[Event "*** MasterClass Titled Tuesday Blitz"]
[Site "Chess.com"]
[Date "2017.10.03"]
[Round "4"]
[White "ZapataCharlesS"]
[Black "1stSecond"]
[Result "1/2-1/2"]
[WhiteElo "2561"]
[BlackElo "2613"]
[TimeControl "180+2"]
[EndTime "13:53:10 PDT"]
[Termination "Game drawn - insufficient material"]

1. d4 {[%clk 0:01:51.1]} 1... Nf6 {[%clk 0:03:00.7]} 2. Nf3 {[%clk 0:01:53]}
2... e6 {[%clk 0:03:01.3]} 3. Bg5 {[%clk 0:01:51.9]} 3... h6 {[%clk 0:02:53.8]}
4. Bxf6 {[%clk 0:01:52.8]} 4... Qxf6 {[%clk 0:02:55.7]} 5. e4 {[%clk 0:01:53.9]}
5... b6 {[%clk 0:02:46.9]} 6. c3 {[%clk 0:01:54.6]} 6... Bb7 {[%clk 0:02:47.1]}
7. Bd3 {[%clk 0:01:54.6]} 7... c5 {[%clk 0:02:17]} 8. O-O {[%clk 0:01:53.3]}
8... Be7 {[%clk 0:02:09.2]} 9. Re1 {[%clk 0:01:49]} 9... O-O {[%clk 0:02:04.1]}
10. e5 {[%clk 0:01:44.8]} 10... Qf4 {[%clk 0:02:04.4]} 11. Nbd2 {[%clk
0:01:46.4]} 11... cxd4 {[%clk 0:01:44.9]} 12. cxd4 {[%clk 0:01:34.7]} 12... Bb4
{[%clk 0:01:34.3]} 13. Be4 {[%clk 0:01:20.3]} 13... d5 {[%clk 0:01:16.6]} 14.
exd6 {[%clk 0:01:22.2]} 14... Bxe4 {[%clk 0:01:15.5]} 15. Rxe4 {[%clk
0:01:22.3]} 15... Qxd6 {[%clk 0:01:16.7]} 16. a3 {[%clk 0:01:18.4]} 16... Bxd2
{[%clk 0:01:16.8]} 17. Qxd2 {[%clk 0:01:20.3]} 17... Nc6 {[%clk 0:01:15.4]} 18.
Rg4 {[%clk 0:01:20.3]} 18... Kh8 {[%clk 0:01:10.3]} 19. Rd1 {[%clk 0:01:16.1]}
19... Rad8 {[%clk 0:01:10.1]} 20. b4 {[%clk 0:01:10.9]} 20... Qd5 {[%clk
0:00:54.9]} 21. Qd3 {[%clk 0:01:05.6]} 21... Rd7 {[%clk 0:00:51.4]} 22. b5
{[%clk 0:01:02.9]} 22... Ne7 {[%clk 0:00:49.5]} 23. Ne5 {[%clk 0:01:01.6]} 23...
Rc7 {[%clk 0:00:50.5]} 24. Re4 {[%clk 0:00:53.5]} 24... Kg8 {[%clk 0:00:44.1]}
25. h4 {[%clk 0:00:47.8]} 25... Rfc8 {[%clk 0:00:44.4]} 26. Qf3 {[%clk
0:00:45.4]} 26... Nf5 {[%clk 0:00:33.3]} 27. a4 {[%clk 0:00:45.9]} 27... Rc3
{[%clk 0:00:32.1]} 28. Qg4 {[%clk 0:00:47]} 28... Rc1 {[%clk 0:00:23.6]} 29.
Ree1 {[%clk 0:00:44.5]} 29... Rxd1 {[%clk 0:00:24]} 30. Rxd1 {[%clk 0:00:46.4]}
30... Rd8 {[%clk 0:00:21.9]} 31. Nc6 {[%clk 0:00:43.9]} 31... Rd7 {[%clk
0:00:23.3]} 32. Rd3 {[%clk 0:00:38.5]} 32... Qc4 {[%clk 0:00:22.2]} 33. Qd1
{[%clk 0:00:39.5]} 33... Qa2 {[%clk 0:00:19.5]} 34. d5 {[%clk 0:00:37.5]} 34...
exd5 {[%clk 0:00:19.6]} 35. Qg4 {[%clk 0:00:31.8]} 35... Qa1+ {[%clk 0:00:20.4]}
36. Kh2 {[%clk 0:00:32.6]} 36... Qf6 {[%clk 0:00:21.9]} 37. h5 {[%clk
0:00:29.9]} 37... Qd6+ {[%clk 0:00:20.9]} 38. g3 {[%clk 0:00:28.5]} 38... g6
{[%clk 0:00:21.9]} 39. Rd2 {[%clk 0:00:23.5]} 39... Kh7 {[%clk 0:00:22.3]} 40.
Rd3 {[%clk 0:00:21.8]} 40... d4 {[%clk 0:00:23.1]} 41. Qe4 {[%clk 0:00:18.9]}
41... Qe6 {[%clk 0:00:21.6]} 42. Qxe6 {[%clk 0:00:17.3]} 42... fxe6 {[%clk
0:00:23.5]} 43. g4 {[%clk 0:00:19.2]} 43... Ne7 {[%clk 0:00:18.4]} 44. hxg6+
{[%clk 0:00:21.1]} 44... Kxg6 {[%clk 0:00:18.8]} 45. Rxd4 {[%clk 0:00:21.4]}
45... Rxd4 {[%clk 0:00:19.4]} 46. Nxd4 {[%clk 0:00:21.1]} 46... Kf6 {[%clk
0:00:21]} 47. Nc6 {[%clk 0:00:20.2]} 47... Nd5 {[%clk 0:00:08.6]} 48. Nxa7
{[%clk 0:00:18]} 48... Nc3 {[%clk 0:00:10]} 49. a5 {[%clk 0:00:13.6]} 49... Nd5
{[%clk 0:00:09.4]} 50. a6 {[%clk 0:00:12.4]} 50... Nc7 {[%clk 0:00:10.6]} 51.
Kg3 {[%clk 0:00:12.9]} 51... Ke5 {[%clk 0:00:12.1]} 52. f4+ {[%clk 0:00:14.3]}
52... Ke4 {[%clk 0:00:13]} 53. g5 {[%clk 0:00:15.6]} 53... hxg5 {[%clk 0:00:14]}
54. fxg5 {[%clk 0:00:17.5]} 54... Kf5 {[%clk 0:00:15.6]} 55. Kh4 {[%clk
0:00:19.1]} 55... e5 {[%clk 0:00:17.2]} 56. Nc6 {[%clk 0:00:19.4]} 56... Nxb5
{[%clk 0:00:17.2]} 57. Ne7+ {[%clk 0:00:19.5]} 57... Ke6 {[%clk 0:00:18]} 58.
Nc8 {[%clk 0:00:20.9]} 58... e4 {[%clk 0:00:18.2]} 59. Nxb6 {[%clk 0:00:22.3]}
59... e3 {[%clk 0:00:19.4]} 60. Kg3 {[%clk 0:00:23.9]} 60... Kf5 {[%clk
0:00:20]} 61. Kf3 {[%clk 0:00:25.4]} 61... Kxg5 {[%clk 0:00:21.3]} 62. Nd5
{[%clk 0:00:26.3]} 62... Kf5 {[%clk 0:00:21.3]} 63. Kxe3 {[%clk 0:00:27]} 63...
Ke5 {[%clk 0:00:22.2]} 64. Nc3 {[%clk 0:00:28.1]} 64... Na7 {[%clk 0:00:22.5]}
65. Kd3 {[%clk 0:00:29]} 65... Kd6 {[%clk 0:00:23.6]} 66. Kc4 {[%clk 0:00:29.9]}
66... Kc6 {[%clk 0:00:25]} 67. Nd5 {[%clk 0:00:30.3]} 67... Nc8 {[%clk
0:00:24.8]} 68. Nb4+ {[%clk 0:00:25.8]} 68... Kb6 {[%clk 0:00:25.9]} 69. Kd5
{[%clk 0:00:27.4]} 69... Na7 {[%clk 0:00:26.5]} 70. Kd6 {[%clk 0:00:29]} 70...
Nc6 {[%clk 0:00:26.1]} 71. Nd5+ {[%clk 0:00:23.7]} 71... Kxa6 {[%clk 0:00:26.6]}
72. Kxc6 {[%clk 0:00:25.6]} 1/2-1/2